bitfinex-derivatives/quotes_BNBF0:USTF0_20250331
["timestamp","ask_amount","ask_price","bid_price","bid_amount"]
[1743393112856,0.30657083,600.16,598.93,0.33392883]
[1743393113657,0.33325002,600.15,598.93,0.33392883]
[1743393113957,0.30657083,600.14,598.93,0.33392883]
[1743393114257,0.33326112,600.13,598.93,0.33392883]
[1743393114457,0.30657083,600.12,598.93,0.33392883]
[1743393114760,0.33327223,600.11,598.93,0.33392883]
[1743393115152,0.30665927,600.1,598.93,0.33392883]
[1743393115353,0.33328334,600.09,598.93,0.33392883]
[1743393115557,0.30665927,600.08,598.93,0.33392883]
[1743393116554,0.29061392,600.07,598.93,0.33392883]
[1743393116758,0.30660279,600.06,598.93,0.33392883]
[1743393118658,0.30660279,600.05,598.93,0.33392883]
[1743393118858,0.30660279,600.04,598.93,0.33392883]
[1743393119063,0.30660279,600.08,598.93,0.33392883]
[1743393119262,0.30660279,600.07,598.93,0.33392883]
[1743393119558,0.30660279,600.06,598.93,0.33392883]
[1743393121560,0.30660279,600.05,598.93,0.33392883]
[1743393122459,0.29056297,600.04,598.93,0.33392883]
[1743393122664,0.30660279,600.03,598.93,0.33392883]
[1743393124465,0.30660279,600.05,598.93,0.33392883]
[1743393125567,0.29054598,600.04,598.93,0.33392883]
[1743393125762,0.30660279,600.03,598.93,0.33392883]
[1743393127164,0.3066254,600.02,598.93,0.33392883]
[1743393127361,0.3066254,600.03,598.93,0.33392883]
[1743393127667,0.3066254,600.02,598.93,0.33392883]
[1743393127863,0.3066254,600.05,598.93,0.33392883]
[1743393128067,0.29052173,600.01,598.93,0.33392883]
[1743393128563,0.3066254,600.0,598.93,0.33392883]
[1743393129668,0.29052173,600.01,598.93,0.33392883]
[1743393129863,0.30663835,600.0,598.93,0.33392883]
[1743393130465,0.30663835,600.05,598.93,0.33392883]
[1743393130668,0.29040536,599.99,598.93,0.33392883]
[1743393130867,0.30663835,599.98,598.93,0.33392883]
[1743393133470,0.30663835,599.97,598.93,0.33392883]
[1743393133670,0.30663835,599.96,598.93,0.33392883]
[1743393133866,0.30663835,599.95,598.93,0.33392883]
[1743393134170,0.30663835,599.94,598.93,0.33392883]
[1743393134370,0.30663835,600.05,598.93,0.33392883]
[1743393134571,0.29046959,599.93,598.93,0.33392883]
[1743393134771,0.30663835,599.92,598.93,0.33392883]
[1743393135173,0.30663835,600.05,598.93,0.33392883]
[1743393135870,0.29037991,600.04,598.93,0.33392883]
[1743393136068,0.30663835,600.03,598.93,0.33392883]
[1743393136471,0.30663835,600.05,598.93,0.33392883]
[1743393136671,0.30663835,600.04,598.93,0.33392883]
[1743393136868,0.667,600.04,598.93,0.33392883]
[1743393137071,0.30663835,600.03,598.93,0.33392883]
[1743393137271,0.30663835,600.03,598.94,0.28993479]
[1743393137468,0.30663835,600.03,598.95,0.33391768]
[1743393137670,0.29044777,600.02,598.95,0.33391768]
[1743393137869,0.30663835,600.01,598.95,0.33391768]
[1743393138573,0.30663835,600.01,598.96,0.28991072]
[1743393138775,0.30663835,600.01,598.97,0.33390653]
[1743393138975,0.30663835,600.01,598.98,0.28991072]
[1743393139275,0.30663835,600.01,598.82,0.29044777]
[1743393139276,0.667,600.04,598.99,0.33389539]
[1743393139681,0.29031693,600.0,598.99,0.33389539]
[1743393142289,0.667,600.04,598.99,0.33389539]
[1743393142786,0.29032541,599.99,598.99,0.33389539]
[1743393143690,0.29032541,599.99,599.0,0.28984628]
[1743393143884,0.29032541,599.99,599.01,0.33388424]
[1743393144184,0.29032541,599.99,599.02,0.28984628]
[1743393144385,0.30649719,599.98,599.02,0.28984628]
[1743393144791,0.30649719,599.98,599.01,0.33388424]
[1743393148597,0.30649719,600.03,598.05,2.53489445]
[1743393148805,0.63981941,600.02,598.07,0.33440901]
[1743393148993,0.63982496,600.01,598.08,0.29005548]
[1743393149293,0.30649719,600.0,598.1,0.33439224]
[1743393149497,0.59702377,600.0,598.11,0.29005548]
[1743393149692,0.59702377,600.0,598.1,0.33439224]
[1743393149693,0.30649719,599.99,598.12,0.29005548]
[1743393149892,0.30649719,599.99,598.13,0.29005548]
[1743393150092,0.30649719,599.99,598.14,0.29005548]
[1743393150293,0.30649719,599.99,598.16,0.3343587]
[1743393150495,0.29052658,600.0,598.16,0.3343587]
[1743393150697,0.30669572,599.99,598.17,0.29005469]
[1743393150898,0.30669572,599.99,598.19,0.33434193]
[1743393151196,0.30669572,599.99,598.2,0.29005469]
[1743393151594,0.30669572,600.0,598.2,0.29005469]
[1743393151798,0.30669572,599.99,598.21,0.29005469]
[1743393151995,0.30669572,600.0,598.2,0.29005469]
[1743393152297,0.30669572,600.0,597.97,2.53489445]
[1743393152298,0.3067236,599.99,598.22,0.33432516]
[1743393152597,0.33334444,599.98,598.23,0.29008235]
[1743393152795,0.3067236,599.97,598.25,0.33430839]
[1743393153096,0.3067236,599.97,598.26,0.29008235]
[1743393153299,0.3067236,599.97,598.27,0.29008235]
[1743393153500,0.3067236,599.97,598.28,0.29008235]
[1743393153700,0.3067236,599.97,598.29,0.29008235]
[1743393153894,0.3067236,599.97,598.3,0.29008235]
[1743393154096,0.3067236,599.97,598.26,0.29008235]
[1743393154297,0.30668611,599.96,598.27,0.2900451]
[1743393154497,0.30668611,599.97,598.26,0.2900451]
[1743393154894,0.29050596,599.95,598.26,0.2900451]
[1743393155096,0.30668611,599.94,598.28,0.33429163]
[1743393155295,0.30668611,599.94,598.29,0.2900451]
[1743393155500,0.30668611,599.94,598.31,0.33427487]
[1743393155700,0.30668611,599.94,598.32,0.2900451]
[1743393155996,0.30668611,599.94,598.34,0.33425811]
[1743393156200,0.30668611,599.94,598.35,0.2900451]
[1743393156401,0.30668611,599.94,598.37,0.33424135]
[1743393156699,0.30668611,599.94,598.38,0.2900451]
[1743393156900,0.30668611,599.94,598.4,0.33422459]
[1743393157101,0.30668611,599.94,598.41,0.2900451]
[1743393157400,0.30668611,599.94,598.43,0.33420784]
[1743393157595,0.30668611,599.97,598.44,0.2900451]
[1743393157800,0.33334444,599.98,598.46,0.33419109]
[1743393158100,0.30671712,599.97,598.47,0.29007588]
[1743393158296,0.30671712,599.97,598.49,0.33417433]
[1743393158600,0.29048535,599.96,598.5,0.29007588]
[1743393158796,0.30671712,599.95,598.51,0.33416317]
[1743393159002,0.30671712,599.95,598.52,0.29007588]
[1743393159301,0.30671712,599.95,598.53,0.334152]
[1743393159501,0.30671712,599.95,598.54,0.29007588]
[1743393159701,0.30671712,599.95,598.55,0.33414084]
[1743393160002,0.30671712,599.95,598.56,0.29007588]
[1743393160201,0.30671712,599.95,598.57,0.33412967]
[1743393160402,0.30671712,599.95,598.58,0.29007588]
[1743393160704,0.30671712,599.95,598.59,0.33411851]
[1743393161003,0.30671712,599.95,598.6,0.29007588]
[1743393161203,0.29048535,599.96,598.61,0.33410734]
[1743393161406,0.30672217,599.95,598.61,0.33410734]
[1743393163501,0.30672217,599.95,598.62,0.29006764]
[1743393163705,0.30672217,599.95,598.63,0.33409618]
[1743393163902,0.30672217,599.95,598.64,0.29006764]
[1743393164101,0.30672217,599.95,598.65,0.33408502]
[1743393164304,0.30672217,599.95,598.66,0.29006764]
[1743393164504,0.30672217,599.95,598.67,0.33407386]
[1743393165399,0.30672217,599.95,598.68,0.29005967]
[1743393165598,0.30672217,599.95,598.68,0.62412795]
[1743393165802,0.30672217,599.95,598.69,0.29005967]
[1743393166506,0.30672217,599.97,598.69,0.29005967]
[1743393166701,0.30672217,599.96,598.69,0.29005967]
[1743393167002,0.30672217,599.95,598.69,0.29005967]
[1743393167206,0.30672217,599.97,598.69,0.29005967]
[1743393167707,0.29045626,599.94,598.69,0.29005967]
[1743393167909,0.30672217,599.93,598.69,0.29005967]
[1743393169605,0.30672217,599.97,598.69,0.29005967]
[1743393169805,0.30672217,599.96,598.69,0.29005967]
[1743393170005,0.30672217,599.97,598.69,0.29005967]
[1743393170206,0.33334444,599.98,598.68,0.33406828]
[1743393170403,0.30669655,599.97,598.68,0.33406828]
[1743393170607,0.29045626,599.96,598.68,0.33406828]
[1743393171008,0.30669655,599.95,598.68,0.33406828]
[1743393172112,0.29045626,599.96,598.68,0.33406828]
[1743393172307,0.30667441,599.95,598.68,0.33406828]
[1743393172611,0.30667441,599.97,598.68,0.33406828]
[1743393172811,0.29046596,599.95,598.68,0.33406828]
[1743393173007,0.30667441,599.94,598.69,0.2900246]
[1743393173211,0.30667441,599.94,598.7,0.33405712]
[1743393174213,0.3066755,599.93,598.7,0.33405712]
[1743393174412,0.3066755,599.92,598.7,0.33405712]
[1743393174613,0.3066755,599.94,598.7,0.33405712]
[1743393174915,0.3066755,599.93,598.7,0.33405712]
[1743393175114,0.3066755,599.94,598.7,0.33405712]
[1743393175515,0.3066755,599.97,598.7,0.33405712]
[1743393176815,0.29056539,599.96,598.7,0.33405712]
[1743393177109,0.3066755,599.95,598.7,0.33405712]
[1743393177916,0.3066755,599.95,598.71,0.29004502]
[1743393178116,0.3066755,599.95,598.72,0.33404596]
[1743393178314,0.3066755,599.95,598.73,0.29004502]
[1743393178517,0.29044535,599.94,598.73,0.6240854]
[1743393178718,0.3066755,599.93,598.74,0.29004502]
[1743393180218,0.3066755,599.93,598.73,0.33404038]
[1743393181114,0.30669484,599.92,598.73,0.33404038]
[1743393181321,0.30669484,599.93,598.73,0.33404038]
[1743393181519,0.33334444,599.98,598.73,0.33404038]
[1743393181721,0.30669805,599.97,598.73,0.33404038]
[1743393182621,0.29053628,599.96,598.73,0.33404038]
[1743393183016,0.30671825,599.95,598.73,0.33404038]
[1743393183824,0.33336667,599.94,598.73,0.33404038]
[1743393184023,0.30671825,599.93,598.73,0.33404038]
[1743393184218,0.64009047,599.93,598.73,0.33404038]
[1743393184425,0.30671825,599.92,598.73,0.33404038]
[1743393184624,0.59721573,599.92,598.73,0.33404038]
[1743393184825,0.30671825,599.91,598.73,0.33404038]
[1743393185124,0.738,599.9,598.73,0.33404038]
[1743393185324,0.30671825,599.89,598.73,0.33404038]
[1743393186525,0.738,599.9,598.73,0.33404038]
[1743393186826,0.30671399,599.89,598.73,0.33404038]
[1743393187826,0.29049505,599.88,598.73,0.33404038]
[1743393190228,0.3067231,599.87,598.73,0.33404038]
[1743393190629,0.29050354,599.86,598.73,0.33404038]
[1743393190826,0.3067231,599.85,598.73,0.33404038]
[1743393196538,0.3067231,599.84,598.73,0.33404038]
[1743393196739,0.29055569,599.84,598.73,0.33404038]
[1743393196940,0.3067231,599.83,598.73,0.33404038]
[1743393199446,0.3067231,599.82,598.73,0.33404038]
[1743393199648,0.29050596,599.82,598.73,0.33404038]
[1743393202445,0.738,599.9,598.73,0.33404038]
[1743393203451,0.738,599.9,598.74,0.28991697]
[1743393203752,0.29054113,599.89,598.74,0.28991697]
[1743393203953,0.29054113,599.89,598.75,0.33402922]
[1743393204153,0.29054113,599.89,598.76,0.28991697]
[1743393204354,0.29054113,599.89,598.77,0.33401807]
[1743393204550,0.29054113,599.89,598.78,0.28991697]
[1743393204847,0.29054113,599.89,598.79,0.33400691]
[1743393205055,0.29054113,599.89,598.8,0.28991697]
[1743393205254,0.29054113,599.89,598.81,0.33399575]
[1743393205553,0.738,599.9,598.82,0.28991697]
[1743393205749,0.738,599.9,598.83,0.3339846]
[1743393206054,0.738,599.9,598.84,0.28991697]
[1743393206354,0.738,599.9,598.85,0.33397344]
[1743393206555,0.29037264,599.89,598.86,0.28991697]
[1743393206756,0.29037264,599.89,598.87,0.33396229]
[1743393206955,0.29037264,599.89,598.88,0.28991697]
[1743393207156,0.29037264,599.89,598.89,0.33395114]
[1743393207355,0.29037264,599.89,598.9,0.28991697]
[1743393207550,0.29037264,599.89,598.91,0.33393999]
[1743393207753,0.29037264,599.89,598.92,0.28991697]
[1743393207955,0.29037264,599.89,598.93,0.33392883]
[1743393208151,0.29037264,599.89,598.94,0.28991697]
[1743393208353,0.738,599.9,598.95,0.33391768]
[1743393208553,0.738,599.9,598.96,0.28991697]
[1743393208752,0.738,599.9,598.97,0.33390653]
[1743393208951,0.738,599.9,598.98,0.28991697]
[1743393209155,0.738,599.9,598.99,0.33389539]
[1743393209657,0.29035205,599.89,598.99,0.33389539]
[1743393211358,0.738,599.9,598.99,0.33389539]
[1743393212558,0.2904708,599.89,598.99,0.33389539]
[1743393214355,0.738,599.9,598.99,0.33389539]
[1743393215661,0.29047565,599.89,598.99,0.33389539]
[1743393215961,0.29047565,599.89,599.0,0.28988369]
[1743393216162,0.29047565,599.89,599.0,0.6237735]
[1743393216361,0.30653828,599.88,599.01,0.28988369]
[1743393216554,0.30653828,599.88,599.0,0.33388981]
[1743393217656,0.30653828,599.89,599.0,0.33388981]
[1743393217861,0.59709033,599.87,599.0,0.33388981]
[1743393218056,0.29055205,599.87,598.61,0.29054841]
[1743393218261,0.29055205,599.87,598.62,0.33410176]
[1743393220364,0.738,599.9,598.62,0.33410176]
[1743393221565,0.29065397,599.89,598.62,0.33410176]
[1743393223364,0.738,599.9,598.62,0.33410176]
[1743393223666,0.29048414,599.88,598.62,0.33410176]
[1743393226569,0.738,599.9,598.62,0.33410176]
[1743393226773,0.29046959,599.87,598.62,0.33410176]
[1743393229268,0.738,599.9,598.62,0.33410176]
[1743393229768,0.2907001,599.89,598.62,0.33410176]
[1743393231972,0.33340001,599.88,598.62,0.33410176]
[1743393232777,0.29051688,599.87,598.62,0.33410176]
[1743393232977,0.62392245,599.87,598.62,0.33410176]
[1743393235484,0.33341112,599.86,598.62,0.33410176]
[1743393235677,0.30679716,599.85,598.62,0.33410176]
[1743393237078,0.689,599.84,598.62,0.33410176]
[1743393237279,0.30679716,599.83,598.62,0.33410176]
[1743393238674,0.2905472,599.82,598.62,0.33410176]
[1743393238879,0.30679716,599.81,598.62,0.33410176]
[1743393241582,0.2905472,599.82,598.62,0.33410176]
[1743393241782,0.3067714,599.8,598.62,0.33410176]
[1743393241981,0.3067714,599.79,598.62,0.33410176]
[1743393242282,0.3067714,599.81,598.62,0.33410176]
[1743393245386,0.2905472,599.82,598.62,0.33410176]
[1743393245589,0.30676792,599.81,598.62,0.33410176]
[1743393247584,0.30676792,599.8,598.62,0.33410176]
[1743393247889,0.30676792,599.79,598.62,0.33410176]
[1743393248788,0.2905472,599.8,598.62,0.33410176]
[1743393248985,0.30676953,599.79,598.62,0.33410176]
[1743393250492,0.30676953,599.83,598.62,0.33410176]
[1743393250693,0.29053022,599.78,598.62,0.33410176]
[1743393250994,0.30676953,599.77,598.62,0.33410176]
[1743393251489,0.29053022,599.78,598.62,0.33410176]
[1743393252896,0.29053022,599.78,598.63,0.28999247]
[1743393253399,0.689,599.84,598.64,0.3340906]
[1743393253793,0.29044899,599.77,598.64,0.3340906]
[1743393253998,0.689,599.84,598.64,0.3340906]
[1743393254700,0.29045989,599.83,598.64,0.3340906]
[1743393256302,0.689,599.84,598.64,0.3340906]
[1743393256602,0.30666555,599.83,598.64,0.3340906]
[1743393256802,0.29048414,599.82,598.64,0.3340906]
[1743393259306,0.689,599.84,598.64,0.3340906]
[1743393259807,0.29060179,599.83,598.64,0.3340906]
[1743393262003,0.30667245,599.82,598.64,0.3340906]
[1743393263209,0.29060179,599.83,598.64,0.3340906]
[1743393263710,0.30666748,599.82,598.65,0.29002664]
[1743393263902,0.30666748,599.82,598.66,0.33407944]
[1743393264105,0.30666748,599.82,598.67,0.29002664]
[1743393264810,0.29060179,599.83,598.66,0.33407944]
[1743393265405,0.689,599.84,598.66,0.33407944]
[1743393265610,0.30667696,599.83,598.66,0.33407944]
[1743393266710,0.290603,599.82,598.66,0.33407944]
[1743393266907,0.30667696,599.81,598.66,0.33407944]
[1743393271815,0.30667696,599.83,598.66,0.33407944]
[1743393272015,0.30667696,599.82,598.66,0.33407944]
[1743393272216,0.689,599.84,598.66,0.33407944]
[1743393272217,0.30667696,599.83,598.66,0.33407944]
[1743393272517,0.689,599.84,598.66,0.33407944]
[1743393272717,0.29055569,599.82,598.66,0.33407944]
[1743393274319,0.33341112,599.86,598.66,0.33407944]
[1743393275618,0.29042959,599.85,598.66,0.33407944]
[1743393276714,0.868,599.84,598.66,0.33407944]
[1743393277819,0.868,599.84,598.67,0.28996833]
[1743393278020,0.868,599.84,598.68,0.33406828]
[1743393278221,0.868,599.84,598.69,0.28996173]
[1743393278416,0.868,599.84,598.7,0.33405712]
[1743393278624,0.29057024,599.83,598.7,0.33405712]
[1743393278819,0.29057024,599.83,598.71,0.2899589]
[1743393279017,0.29057024,599.83,598.72,0.33404596]
[1743393280323,0.868,599.84,598.72,0.33404596]
[1743393281517,0.29057388,599.83,598.72,0.33404596]
[1743393283522,0.868,599.84,598.72,0.33404596]
[1743393284723,0.29056782,599.83,598.72,0.33404596]
[1743393289119,0.29056782,599.83,598.73,0.28997693]
[1743393289322,0.29056782,599.83,598.74,0.3340348]
[1743393289624,0.868,599.84,598.75,0.28997693]
[1743393289825,0.868,599.84,598.76,0.33402364]
[1743393290026,0.868,599.84,598.77,0.28997693]
[1743393290227,0.868,599.84,598.78,0.33401249]
[1743393290523,0.868,599.84,598.79,0.28997693]
[1743393290725,0.59704573,599.83,598.8,0.33400133]
[1743393290926,0.30661735,599.82,598.81,0.28997693]
[1743393291226,0.30661735,599.82,598.82,0.33399018]
[1743393291425,0.29042838,599.83,598.82,0.33399018]
[1743393292326,0.868,599.84,598.82,0.33399018]
[1743393292526,0.30662624,599.83,598.82,0.33399018]
[1743393292826,0.29044899,599.82,598.82,0.33399018]
[1743393294421,0.30664125,599.81,598.82,0.33399018]
[1743393295629,0.30664125,599.8,598.82,0.33399018]
[1743393295929,0.30664125,599.83,598.82,0.33399018]
[1743393296121,0.30664125,599.82,598.82,0.33399018]
[1743393296320,0.30664125,599.83,598.82,0.33399018]
[1743393296527,0.30664125,599.81,598.82,0.33399018]
[1743393296727,0.29054356,599.81,598.82,0.33399018]
[1743393296926,0.30664125,599.8,598.82,0.33399018]
[1743393297822,0.29054356,599.81,598.82,0.33399018]
[1743393298027,0.30666084,599.8,598.82,0.33399018]
[1743393298625,0.30666084,599.83,598.82,0.33399018]
[1743393298823,0.30666084,599.82,598.82,0.33399018]
[1743393299026,0.30666084,599.83,598.82,0.33399018]
[1743393299230,0.30666084,599.82,598.82,0.33399018]
[1743393299623,0.59720561,599.81,598.82,0.33399018]
[1743393299826,0.30666084,599.8,598.82,0.33399018]
[1743393301625,0.30666084,599.83,598.82,0.33399018]
[1743393301830,0.30666084,599.82,598.82,0.33399018]
[1743393302026,0.30666084,599.83,598.82,0.33399018]
[1743393302626,0.290529,599.82,598.82,0.33399018]
[1743393302830,0.30666084,599.81,598.82,0.33399018]
[1743393304326,0.290529,599.82,598.82,0.33399018]
[1743393304531,0.30667155,599.8,598.82,0.33399018]
[1743393304726,0.30667155,599.79,598.82,0.33399018]
[1743393304931,0.30667155,599.81,598.82,0.33399018]
[1743393305231,0.30667155,599.8,598.83,0.29002639]
[1743393305431,0.30667155,599.81,598.83,0.29002639]
[1743393305932,0.30667155,599.81,598.82,0.33399018]
[1743393306132,0.290529,599.82,598.82,0.33399018]
[1743393307334,0.868,599.84,598.82,0.33399018]
[1743393308636,0.29052173,599.83,598.82,0.33399018]
[1743393310436,0.868,599.84,598.82,0.33399018]
[1743393311733,0.29053628,599.83,598.82,0.33399018]
[1743393313438,0.868,599.84,598.82,0.33399018]
[1743393314635,0.29056418,599.83,598.82,0.33399018]
[1743393316446,0.868,599.84,598.82,0.33399018]
[1743393317642,0.29055326,599.83,598.82,0.33399018]
[1743393322345,0.868,599.84,598.82,0.33399018]
[1743393322743,0.2905096,599.82,598.82,0.33399018]
[1743393328455,0.868,599.84,598.82,0.33399018]
[1743393328652,0.3067358,599.83,598.82,0.33399018]
[1743393328855,0.29051445,599.81,598.82,0.33399018]
[1743393329255,0.30673034,599.8,598.82,0.33399018]
[1743393329654,0.29051445,599.81,598.82,0.33399018]
[1743393329851,0.30672606,599.8,598.82,0.33399018]
[1743393331556,0.30675604,599.79,598.82,0.33399018]
[1743393331750,0.29053507,599.79,598.82,0.33399018]
[1743393331952,0.30675604,599.78,598.82,0.33399018]
[1743393332257,0.30675604,599.78,598.46,0.29053507]
[1743393332553,0.30675604,599.78,598.47,0.29012842]
[1743393332961,0.30675604,599.78,598.48,0.33417992]
[1743393333163,0.33346116,599.77,598.49,0.29012842]
[1743393333357,0.30675604,599.76,598.48,0.33417992]
[1743393333556,0.64022276,599.76,598.48,0.33417992]
[1743393333762,0.64022832,599.75,598.48,0.33417992]
[1743393333962,0.30675604,599.74,598.48,0.33417992]
[1743393334565,0.64023388,599.74,598.48,0.33417992]
[1743393334865,0.59742094,599.73,598.48,0.33417992]
[1743393335065,0.30675604,599.72,598.48,0.33417992]
[1743393336269,0.2906649,599.73,598.48,0.33417992]
[1743393337565,0.33347784,599.74,598.48,0.33417992]
[1743393337772,0.29057267,599.72,598.48,0.33417992]
[1743393339366,0.821,599.71,598.48,0.33417992]
[1743393340569,0.821,599.71,598.49,0.29000343]
[1743393340769,0.821,599.71,598.51,0.33416317]
[1743393341570,0.29049263,599.7,598.52,0.28998869]
[1743393341870,0.29049263,599.7,598.54,0.33414642]
[1743393344765,0.29049263,599.7,598.55,0.28998901]
[1743393344974,0.29049263,599.7,598.57,0.33412967]
[1743393345173,0.29049263,599.7,598.58,0.28998901]
[1743393345468,0.29049263,599.7,598.6,0.33411293]
[1743393345672,0.29049263,599.7,598.61,0.28998901]
[1743393345872,0.29049263,599.7,598.63,0.33409618]
[1743393346171,0.29049263,599.7,598.64,0.28998901]
[1743393346672,0.29049263,599.7,598.66,0.33407944]
[1743393347573,0.29049263,599.7,598.67,0.28994477]
[1743393347774,0.29049263,599.7,598.69,0.3340627]
[1743393348376,0.29049263,599.7,598.7,0.28993918]
[1743393348673,0.821,599.71,598.7,0.28993918]
[1743393349073,0.821,599.71,598.72,0.33404596]
[1743393349275,0.821,599.71,598.73,0.28993918]
[1743393349466,0.821,599.71,598.75,0.33402922]
[1743393349672,0.821,599.71,598.76,0.28993918]
[1743393349871,0.821,599.71,598.78,0.33401249]
[1743393350074,0.821,599.71,598.79,0.28993918]
[1743393350275,0.821,599.71,598.8,0.33400133]
[1743393350573,0.821,599.71,598.81,0.28988291]
[1743393350773,0.821,599.71,598.82,0.33399018]
[1743393350974,0.821,599.71,598.83,0.28988291]
[1743393351276,0.821,599.71,598.84,0.33397902]
[1743393352571,0.821,599.71,598.85,0.28988926]
[1743393352773,0.821,599.71,598.86,0.33396787]
[1743393352969,0.821,599.71,598.87,0.28988926]
[1743393353174,0.821,599.71,598.88,0.33395671]
[1743393358376,0.821,599.71,598.89,0.28994241]
[1743393361776,0.821,599.71,598.88,0.33395671]
[1743393369378,2.52093128,600.93,598.88,0.33395671]
[1743393369681,0.33287285,600.83,598.88,0.33395671]
[1743393369883,0.30653168,600.82,598.88,0.33395671]
[1743393370079,0.33288948,600.8,598.88,0.33395671]
[1743393370284,0.30653168,600.79,598.88,0.33395671]
[1743393370486,0.3329061,600.77,598.88,0.33395671]
[1743393370681,0.30653168,600.76,598.88,0.33395671]
[1743393370881,0.33292272,600.74,598.88,0.33395671]
[1743393371184,0.30650773,600.73,598.88,0.33395671]
[1743393371385,0.33293935,600.71,598.88,0.33395671]
[1743393371685,0.30650773,600.7,598.88,0.33395671]
[1743393371887,0.33295598,600.68,598.88,0.33395671]
[1743393372184,0.30650773,600.67,598.88,0.33395671]
[1743393372384,0.33297261,600.65,598.88,0.33395671]
[1743393372579,0.30650773,600.64,598.88,0.33395671]
[1743393372784,0.33298924,600.62,598.88,0.33395671]
[1743393373183,0.30650773,600.61,598.88,0.33395671]
[1743393373386,0.33300587,600.59,598.88,0.33395671]
[1743393373686,0.30650773,600.58,598.88,0.33395671]
[1743393373882,0.33302251,600.56,598.88,0.33395671]
[1743393374086,0.30650773,600.55,598.88,0.33395671]
[1743393374284,0.3330336,600.54,598.88,0.33395671]
[1743393374582,0.30650773,600.53,598.88,0.33395671]
[1743393374788,0.33304469,600.52,598.88,0.33395671]
[1743393374986,0.30650773,600.51,598.88,0.33395671]
[1743393375183,0.33305578,600.5,598.88,0.33395671]
[1743393375388,0.30650773,600.49,598.88,0.33395671]
[1743393375788,0.33306687,600.48,598.88,0.33395671]
[1743393375989,0.30650773,600.47,598.88,0.33395671]
[1743393376190,0.33307797,600.46,598.88,0.33395671]
[1743393376384,0.30650773,600.45,598.88,0.33395671]
[1743393376685,0.33308906,600.44,598.88,0.33395671]
[1743393376983,0.30650173,600.43,598.88,0.33395671]
[1743393377184,0.33310016,600.42,598.88,0.33395671]
[1743393377487,0.30650173,600.41,598.88,0.33395671]
[1743393377784,0.33311125,600.4,598.88,0.33395671]
[1743393377986,0.30650173,600.39,598.88,0.33395671]
[1743393378189,0.33312235,600.38,598.88,0.33395671]
[1743393378386,0.30650173,600.37,598.88,0.33395671]
[1743393378885,0.33313345,600.36,598.88,0.33395671]
[1743393379086,0.30650173,600.35,598.88,0.33395671]
[1743393379290,0.33314455,600.34,598.88,0.33395671]
[1743393379492,0.30650173,600.33,598.88,0.33395671]
[1743393379693,0.33315565,600.32,598.89,0.28988312]
[1743393379893,0.33315565,600.32,598.9,0.33394556]
[1743393380095,0.30652277,600.31,598.9,0.33394556]
[1743393380394,0.33316674,600.3,598.91,0.28988114]
[1743393380594,0.30652277,600.29,598.92,0.33393441]
[1743393380788,0.30652277,600.29,598.93,0.28988114]
[1743393380992,0.2903024,600.28,598.94,0.33392326]
[1743393381291,0.30652277,600.27,598.95,0.28988114]
[1743393381487,0.30652277,600.27,598.8,0.2903024]
[1743393381488,0.30652277,600.27,598.96,0.33391211]
[1743393381692,0.2903024,600.28,598.96,0.33391211]
[1743393381892,0.30650312,600.27,598.96,0.33391211]
[1743393382593,0.30650312,600.29,598.96,0.33391211]
[1743393382794,0.29031814,600.26,598.96,0.33391211]
[1743393383098,0.30650312,600.25,598.96,0.33391211]
[1743393388297,0.33320005,600.24,598.96,0.33391211]
[1743393388501,0.30654589,600.23,598.96,0.33391211]
[1743393388802,0.33321115,600.22,598.96,0.33391211]
[1743393389101,0.30654787,600.21,598.96,0.33391211]
[1743393389803,0.29046838,600.2,598.96,0.33391211]
[1743393390101,0.30654787,600.19,598.96,0.33391211]
[1743393394706,0.33321115,600.22,598.96,0.33391211]
[1743393395602,0.30650387,600.21,598.96,0.33391211]
[1743393395806,0.59689953,600.21,598.96,0.33391211]
[1743393396002,0.29039566,600.21,598.96,0.33391211]
[1743393400210,0.30654283,600.2,598.96,0.33391211]
[1743393400706,0.33321115,600.22,598.96,0.33391211]
[1743393400912,0.29034115,600.19,598.96,0.33391211]
[1743393403414,0.33321115,600.22,598.96,0.33391211]
[1743393403713,0.29033994,600.18,598.96,0.33391211]
[1743393404310,0.33323891,600.17,598.96,0.33391211]
[1743393406812,0.29040293,600.16,598.96,0.33391211]
[1743393407011,0.33325002,600.15,598.96,0.33391211]
[1743393408917,0.803,600.14,598.96,0.33391211]
[1743393409118,0.63990888,600.13,598.96,0.33391211]
[1743393409319,0.63991443,600.12,598.96,0.33391211]
[1743393409514,0.63991999,600.11,598.96,0.33391211]
[1743393409714,0.63992554,600.1,598.96,0.33391211]
[1743393409917,0.6399311,600.09,598.96,0.33391211]
[1743393410116,0.63993665,600.08,598.96,0.33391211]
[1743393410314,0.6399422,600.07,598.96,0.33391211]
[1743393410519,0.63994776,600.06,598.96,0.33391211]
[1743393410814,0.63995331,600.05,598.96,0.33391211]
[1743393411021,0.63995887,600.04,598.96,0.33391211]
[1743393411215,0.30664776,600.03,598.96,0.33391211]
[1743393411720,0.33332222,600.02,598.96,0.33391211]